bitfinex-derivatives/quotes_BNBF0:USTF0_20241230
["timestamp","ask_amount","ask_price","bid_price","bid_amount"]
[1735573776534,0.26485547,695.86,694.46,1.05806795]
[1735573776736,0.28742239,695.84,694.46,1.05806795]
[1735573777037,0.26485547,695.83,694.4,1.05806795]
[1735573777228,0.28743478,695.81,694.4,1.05806795]
[1735573777430,0.26485547,695.8,694.4,1.05806795]
[1735573778135,0.26485547,695.8,694.38,1.05806795]
[1735573778636,0.28744305,695.79,694.38,1.05806795]
[1735573779331,0.28744305,695.79,694.41,1.05806795]
[1735573780536,0.28744305,695.79,694.37,1.05806795]
[1735573783538,0.28744305,695.79,694.5,1.05806795]
[1735573784637,0.28744305,695.79,694.56,1.05806795]
[1735573785539,0.28744305,695.79,694.68,1.05806795]
[1735573786739,0.28744305,695.79,694.7,1.05806795]
[1735573787539,0.28744305,695.79,694.72,1.05806795]
[1735573787841,0.26479327,695.78,694.72,1.05806795]
[1735573788837,0.26479327,695.78,694.58,1.05806795]
[1735573790042,0.28744305,695.79,694.65,1.05806795]
[1735573790938,0.28744305,695.79,694.78,1.05806795]
[1735573791140,0.26478359,695.78,694.78,1.05806795]
[1735573791842,0.26478359,695.78,694.73,1.05806795]
[1735573792439,0.28744305,695.79,694.73,1.05806795]
[1735573792741,0.26475891,695.78,694.73,1.05806795]
[1735573793042,0.26475891,695.78,694.77,1.05806795]
[1735573793437,0.28744305,695.79,694.77,1.05806795]
[1735573793641,0.26476153,695.78,694.77,1.05806795]
[1735573793840,0.26476153,695.78,694.25,2.16022206]
[1735573793841,0.28744305,695.79,694.76,1.05806795]
[1735573794145,0.26476756,695.78,694.76,1.05806795]
[1735573794743,0.28744305,695.79,694.76,1.05806795]
[1735573794939,0.28744305,695.79,694.73,1.05806795]
[1735573795746,0.26476995,695.78,694.73,1.05806795]
[1735573796348,0.26476995,695.78,694.72,1.05806795]
[1735573796647,0.26476543,695.77,694.72,1.05806795]
[1735573796845,0.26476543,695.76,694.72,1.05806795]
[1735573797039,0.26476543,695.75,694.72,1.05806795]
[1735573797241,0.28744305,695.79,694.72,1.05806795]
[1735573797445,0.28744305,695.79,694.7,1.05806795]
[1735573798849,0.28744305,695.79,694.5,1.05806795]
[1735573800047,0.28744305,695.79,694.53,1.05806795]
[1735573802354,0.28744305,695.79,693.49,2.16022206]
[1735573802355,0.28744305,695.79,694.57,1.05806795]
[1735573803454,0.28744305,695.79,694.9,1.05806795]
[1735573804550,0.28744305,695.79,695.01,1.05806795]
[1735573805555,0.28744305,695.79,694.89,1.05806795]
[1735573808155,0.28744305,695.79,694.94,1.05806795]
[1735573809151,0.28744305,695.79,694.95,1.05806795]
[1735573811056,0.63521541,696.76,694.76,1.05806795]
[1735573811256,0.26474266,696.75,694.76,1.05806795]
[1735573811553,0.26474266,696.74,694.76,1.05806795]
[1735573811755,0.28705936,696.72,694.76,1.05806795]
[1735573811959,0.28705936,696.72,694.81,1.05806795]
[1735573811960,0.26473867,696.71,694.81,1.05806795]
[1735573812152,0.26473867,696.7,694.81,1.05806795]
[1735573812351,0.26473867,696.69,694.81,1.05806795]
[1735573812550,0.26473867,696.68,694.81,1.05806795]
[1735573812753,0.63521002,697.19,694.82,1.05806795]
[1735573812754,0.28708408,696.66,694.82,1.05806795]
[1735573812954,0.26473867,696.65,694.82,1.05806795]
[1735573813155,0.26473867,696.64,694.82,1.05806795]
[1735573813356,0.28710057,696.62,694.82,1.05806795]
[1735573813555,0.26473867,696.61,694.82,1.05806795]
[1735573813760,0.26473867,696.61,694.14,1.26968154]
[1735573813761,1.06859977,696.43,694.91,1.05806795]
[1735573813958,0.26473867,696.42,694.91,1.05806795]
[1735573814155,0.26473867,696.41,694.91,1.05806795]
[1735573814453,0.26481778,696.4,694.91,1.05806795]
[1735573814660,0.26481778,696.4,694.31,2.16022206]
[1735573814661,1.06859977,696.33,694.81,1.05806795]
[1735573814860,0.26481778,696.32,694.81,1.05806795]
[1735573815056,0.26481778,696.31,694.81,1.05806795]
[1735573815356,0.26481778,696.3,694.81,1.05806795]
[1735573815560,0.55205441,696.29,694.81,1.05806795]
[1735573815759,1.06859977,696.27,694.83,1.05806795]
[1735573815960,0.26481778,696.26,694.83,1.05806795]
[1735573816258,0.26481778,696.25,694.83,1.05806795]
[1735573816454,0.26481778,696.24,694.83,1.05806795]
[1735573816655,0.26481778,696.23,694.83,1.05806795]
[1735573816857,0.28723663,696.29,694.91,1.05806795]
[1735573817054,0.26482189,696.28,694.91,1.05806795]
[1735573817255,0.26482189,696.27,694.91,1.05806795]
[1735573817459,0.26482189,696.26,694.91,1.05806795]
[1735573817659,0.26486577,696.25,694.91,1.05806795]
[1735573817856,0.26486577,696.24,694.91,1.05806795]
[1735573818060,1.06859977,696.13,694.8,1.05806795]
[1735573818260,0.26486577,696.12,694.8,1.05806795]
[1735573818457,0.26486577,696.11,694.8,1.05806795]
[1735573818658,0.26486577,696.1,694.8,1.05806795]
[1735573818862,0.26486577,696.09,694.8,1.05806795]
[1735573819061,0.26486577,696.08,694.8,1.05806795]
[1735573819265,0.26486577,696.08,694.28,2.16022206]
[1735573819266,0.26486577,696.07,694.58,1.05806795]
[1735573819461,1.06859977,696.24,694.58,1.05806795]
[1735573819662,0.2648904,696.23,694.58,1.05806795]
[1735573819864,0.2648904,696.22,694.58,1.05806795]
[1735573820159,0.2648904,696.21,694.58,1.05806795]
[1735573820364,1.06859977,696.07,694.5,1.05806795]
[1735573820559,0.2648904,696.06,694.5,1.05806795]
[1735573820759,0.2648904,696.05,694.5,1.05806795]
[1735573820962,0.2648904,696.04,694.5,1.05806795]
[1735573821161,0.2648904,696.03,694.5,1.05806795]
[1735573821364,0.2648904,696.02,694.5,1.05806795]
[1735573821559,0.2648904,696.01,694.5,1.05806795]
[1735573821765,0.2648904,696.0,694.37,1.05806795]
[1735573821959,0.2648904,696.13,694.37,1.05806795]
[1735573822160,0.2648904,696.12,694.37,1.05806795]
[1735573822358,0.2648904,696.11,694.37,1.05806795]
[1735573822559,0.2648904,696.1,694.37,1.05806795]
[1735573822760,0.2648904,696.09,694.37,1.05806795]
[1735573822964,0.2648904,696.08,694.27,1.05806795]
[1735573823159,0.28723663,696.29,694.27,1.05806795]
[1735573823160,0.2648904,696.07,694.27,1.05806795]
[1735573823361,0.28733567,696.05,694.27,1.05806795]
[1735573823667,0.2648904,696.04,694.27,1.05806795]
[1735573823867,0.2648904,696.04,694.24,1.05806795]
[1735573824461,0.2648508,696.03,694.24,1.05806795]
[1735573824666,0.2648508,696.02,694.24,1.05806795]
[1735573824865,0.2648508,696.01,694.24,1.05806795]
[1735573825060,0.28733567,696.05,694.24,1.05806795]
[1735573825268,0.26486749,696.04,694.45,1.05806795]
[1735573825666,0.28734806,696.02,694.45,1.05806795]
[1735573825861,0.26486749,696.01,694.45,1.05806795]
[1735573826064,0.28736045,695.99,694.45,1.05806795]
[1735573826362,0.26486749,695.98,694.4,1.05806795]
[1735573826563,0.28737283,695.96,694.4,1.05806795]
[1735573826762,0.26486749,695.95,694.4,1.05806795]
[1735573826962,0.28738522,695.93,694.4,1.05806795]
[1735573827163,0.264855,695.92,694.4,1.05806795]
[1735573827367,0.28739761,695.9,694.4,1.05806795]
[1735573827567,0.264855,695.89,694.4,1.05806795]
[1735573828365,0.28741,695.87,694.4,1.05806795]
[1735573828567,0.264855,695.86,694.38,1.05806795]
[1735573828863,0.28741826,695.85,694.38,1.05806795]
[1735573829063,0.264855,695.84,694.38,1.05806795]
[1735573829270,0.28742652,695.83,694.38,1.05806795]
[1735573829563,0.28742652,695.83,694.3,1.05806795]
[1735573829564,0.26486933,695.82,694.3,1.05806795]
[1735573829762,0.26486645,695.81,694.3,1.05806795]
[1735573829962,0.26486645,695.8,694.3,1.05806795]
[1735573830168,0.5523095,695.79,694.3,1.05806795]
[1735573830363,0.26486645,695.78,694.3,1.05806795]
[1735573830964,0.26486645,695.78,694.03,1.05806795]
[1735573830965,0.26486645,695.78,694.29,1.05806795]
[1735573831365,0.28744305,695.79,694.29,1.05806795]
[1735573831963,0.28744305,695.79,693.55,2.16022206]
[1735573831964,0.28744305,695.79,694.4,1.05806795]
[1735573833367,0.28744305,695.79,694.51,1.05806795]
[1735573834770,0.28744305,695.79,694.65,1.05806795]
[1735573835674,0.28744305,695.79,694.68,1.05806795]
[1735573836468,0.26480382,695.78,694.68,1.05806795]
[1735573836776,0.28744305,695.79,694.58,1.05806795]
[1735573839181,0.28744305,695.79,694.61,1.05806795]
[1735573840181,0.28744305,695.79,694.64,1.05806795]
[1735573842278,0.28744305,695.79,694.57,1.05806795]
[1735573842476,0.26480285,695.78,694.57,1.05806795]
[1735573842676,0.28744305,695.79,694.57,1.05806795]
[1735573843684,0.28744305,695.79,694.65,1.05806795]
[1735573844878,0.28744305,695.79,694.55,1.05806795]
[1735573845885,0.28744305,695.79,694.58,1.05806795]
[1735573847086,0.28744305,695.79,694.6,1.05806795]
[1735573848282,0.28744305,695.79,694.83,1.05806795]
[1735573849388,0.28744305,695.79,694.58,1.05806795]
[1735573849389,0.28744305,695.79,694.78,1.05806795]
[1735573850787,0.28744305,695.79,694.61,1.05806795]
[1735573852093,0.28744305,695.79,694.54,1.05806795]
[1735573852293,0.26480013,695.78,694.54,1.05806795]
[1735573852892,0.28744305,695.79,694.54,1.05806795]
[1735573853094,0.26482472,695.78,694.64,1.05806795]
[1735573854388,0.26482472,695.78,689.45,5.76616039]
[1735573854389,0.26482472,695.78,694.59,1.05806795]
[1735573855392,0.26482472,695.78,694.1,1.26968154]
[1735573855393,0.26488847,695.77,694.51,1.05806795]
[1735573855593,0.28744305,695.79,694.51,1.05806795]
[1735573856292,0.26492734,695.78,694.51,1.05806795]
[1735573856494,0.26492734,695.78,694.14,1.05806795]
[1735573857990,0.26492734,695.78,694.11,1.05806795]
[1735573859194,0.26492734,695.77,693.96,1.05806795]
[1735573859394,0.26492734,695.76,693.96,1.05806795]
[1735573859690,0.26492734,695.75,693.96,1.05806795]
[1735573859895,0.26492734,695.74,693.96,1.05806795]
[1735573860096,0.26492734,695.73,693.96,1.05806795]
[1735573860292,0.26492734,695.72,694.03,1.05806795]
[1735573860491,0.26492734,695.71,694.03,1.05806795]
[1735573860695,0.26492734,695.7,694.03,1.05806795]
[1735573860895,0.26492734,695.69,694.03,1.05806795]
[1735573861095,0.26492734,695.68,694.03,1.05806795]
[1735573861297,0.26492734,695.67,694.04,1.05806795]
[1735573861492,0.26492734,695.66,694.04,1.05806795]
[1735573861697,0.26492734,695.65,694.04,1.05806795]
[1735573861997,0.26492734,695.64,694.04,1.05806795]
[1735573862196,0.28744305,695.79,694.04,1.05806795]
[1735573862393,0.26505077,695.78,693.88,1.05806795]
[1735573862595,0.26505077,695.77,693.88,1.05806795]
[1735573862790,0.26505077,695.76,693.88,1.05806795]
[1735573863000,0.26505077,695.75,693.88,1.05806795]
[1735573863199,0.26505077,695.74,693.88,1.05806795]
[1735573863399,0.26505077,695.73,693.84,1.05806795]
[1735573863699,0.26505077,695.72,693.84,1.05806795]
[1735573863899,0.26505077,695.71,693.84,1.05806795]
[1735573864099,0.26505077,695.7,693.84,1.05806795]
[1735573864298,0.26505077,695.69,693.84,1.05806795]
[1735573864602,0.26505077,695.68,693.84,1.05806795]
[1735573864796,0.2650847,695.67,693.73,1.05806795]
[1735573865001,0.2650847,695.66,693.73,1.05806795]
[1735573865201,0.2650847,695.65,693.73,1.05806795]
[1735573865401,0.2650847,695.64,693.73,1.05806795]
[1735573865704,0.2650847,695.63,693.59,1.05806795]
[1735573865898,0.2650847,695.62,693.59,1.05806795]
[1735573866098,0.2650847,695.61,693.59,1.05806795]
[1735573866296,0.2650847,695.6,693.59,1.05806795]
[1735573866501,0.2650847,695.59,693.59,1.05806795]
[1735573866702,0.2650847,695.58,693.59,1.05806795]
[1735573866905,0.2650847,695.57,693.6,1.05806795]
[1735573867106,0.2650847,695.78,693.6,1.05806795]
[1735573867403,0.26514197,695.77,693.6,1.05806795]
[1735573867602,0.26514197,695.76,693.6,1.05806795]
[1735573867803,0.26514197,695.75,693.6,1.05806795]
[1735573868107,0.26514197,695.74,693.05,1.05806795]
[1735573868297,0.26514197,695.73,693.05,1.05806795]
[1735573868501,0.26514197,695.72,693.05,1.05806795]
[1735573868797,0.26514197,695.71,693.05,1.05806795]
[1735573868998,0.26514197,695.7,693.05,1.05806795]
[1735573869198,0.26514197,695.69,693.05,1.05806795]
[1735573869503,0.26514197,695.68,693.15,1.05806795]
[1735573869705,0.26514197,695.67,693.15,1.05806795]
[1735573869905,0.26514197,695.66,693.15,1.05806795]
[1735573870201,0.26514197,695.65,693.15,1.05806795]
[1735573870405,0.26514197,695.64,693.15,1.05806795]
[1735573870602,0.26514197,695.63,693.18,1.05806795]
[1735573870901,0.26514197,695.62,693.18,1.05806795]
[1735573871105,0.26514197,695.61,693.18,1.05806795]
[1735573871306,0.26514197,695.6,693.18,1.05806795]
[1735573871505,0.26514197,695.59,693.18,1.05806795]
[1735573871700,0.26514197,695.58,693.18,1.05806795]
[1735573871900,0.26514197,695.57,693.18,1.05806795]
[1735573872107,0.26514197,695.56,693.41,1.05806795]
[1735573872404,0.26514197,695.55,693.41,1.05806795]
[1735573872605,0.26514197,695.54,693.41,1.05806795]
[1735573872807,0.26514197,695.53,693.41,1.05806795]
[1735573873004,0.26514197,695.52,693.37,1.05806795]
[1735573873204,0.26514197,695.51,693.37,1.05806795]
[1735573873405,0.26514197,695.5,693.37,1.05806795]
[1735573873705,0.26514197,695.49,693.37,1.05806795]
[1735573873907,0.26514197,695.48,693.37,1.05806795]
[1735573874102,0.26514197,695.47,693.4,1.05806795]
[1735573874307,0.26514197,695.46,693.4,1.05806795]
[1735573874607,0.26514197,695.45,693.4,1.05806795]
[1735573874801,0.28744305,695.79,693.4,1.05806795]
[1735573874802,0.26514197,695.44,693.4,1.05806795]
[1735573875008,0.28744305,695.79,693.19,1.05806795]
[1735573875009,0.26516715,695.43,693.19,1.05806795]
[1735573875208,0.26516715,695.42,693.19,1.05806795]
[1735573875408,0.26516715,695.41,693.19,1.05806795]
[1735573875609,0.26516715,695.4,693.19,1.05806795]
[1735573875809,0.26516715,695.39,693.19,1.05806795]
[1735573876013,0.26516715,695.38,693.15,1.05806795]
[1735573876211,0.26516715,695.37,693.15,1.05806795]
[1735573876405,0.26516715,695.36,693.15,1.05806795]
[1735573876605,0.26516715,695.35,693.15,1.05806795]
[1735573876808,0.26516715,695.34,693.15,1.05806795]
[1735573877109,0.26516715,695.33,693.15,1.05806795]
[1735573877409,0.26516715,695.32,693.15,1.05806795]
[1735573877605,0.26516715,695.31,693.15,1.05806795]
[1735573877806,0.26516715,695.3,693.15,1.05806795]
[1735573878106,0.26516715,695.29,693.15,1.05806795]
[1735573878309,0.26520189,695.28,693.1,1.05806795]
[1735573878500,0.26520189,695.27,693.1,1.05806795]
[1735573878704,0.26520189,695.26,693.1,1.05806795]
[1735573878901,0.26520189,695.25,693.1,1.05806795]
[1735573879109,0.26520189,695.24,693.1,1.05806795]
[1735573879309,0.28744305,695.79,693.1,1.05806795]
[1735573879310,0.26520189,695.23,693.1,1.05806795]
[1735573879510,0.26520189,695.22,693.1,1.05806795]
[1735573879809,0.26520189,695.21,693.06,1.05806795]
[1735573880011,0.26520189,695.2,693.06,1.05806795]
[1735573880203,0.28744305,695.79,693.06,1.05806795]
[1735573880403,0.90141439,695.78,693.06,1.05806795]
[1735573880602,0.90141439,695.77,693.06,1.05806795]
[1735573880805,0.90141439,695.76,693.06,1.05806795]
[1735573881008,0.26521736,695.75,693.06,1.05806795]
[1735573881208,0.26521736,695.74,693.06,1.05806795]
[1735573881408,0.26521736,695.73,693.08,1.05806795]
[1735573881708,0.26521736,695.72,693.08,1.05806795]
[1735573881908,0.26521736,695.71,693.08,1.05806795]
[1735573882110,0.26521736,695.7,692.85,1.05806795]
[1735573882301,0.26521736,695.69,692.85,1.05806795]
[1735573882503,0.26521736,695.68,692.85,1.05806795]
[1735573882706,0.28744305,695.79,692.85,1.05806795]
[1735573883003,0.26524663,695.78,692.9,1.05806795]
[1735573883206,0.26524663,695.77,692.9,1.05806795]
[1735573883405,0.26524663,695.76,692.9,1.05806795]
[1735573883605,0.26524663,695.75,692.9,1.05806795]
[1735573883805,0.26524663,695.74,692.9,1.05806795]
[1735573884003,0.26524663,695.73,692.93,1.05806795]
[1735573884207,0.26524663,695.72,692.93,1.05806795]
[1735573884409,0.26524663,695.71,692.93,1.05806795]
[1735573884605,0.28744305,695.79,692.93,1.05806795]
[1735573884606,0.90150417,695.7,692.93,1.05806795]
[1735573884910,0.90150417,695.69,692.93,1.05806795]
[1735573885113,0.90150417,695.68,693.07,1.05806795]
[1735573885409,0.26517404,695.67,693.07,1.05806795]
[1735573885612,0.90128241,695.66,693.07,1.05806795]
[1735573885909,0.26517404,695.65,693.07,1.05806795]
[1735573886110,0.26517404,695.64,693.07,1.05806795]
[1735573886408,0.26517404,695.63,693.34,1.05806795]
[1735573886609,0.26517404,695.62,693.34,1.05806795]
[1735573886805,0.26517404,695.61,693.34,1.05806795]
[1735573887006,0.26517404,695.6,693.34,1.05806795]
[1735573887308,0.26517404,695.59,693.34,1.05806795]
[1735573887506,0.26517404,695.58,693.34,1.05806795]
[1735573887706,0.26517404,695.57,693.42,1.05806795]
[1735573887913,0.26513881,695.56,693.42,1.05806795]
[1735573888212,0.26513881,695.55,693.42,1.05806795]
[1735573888407,0.26513881,695.54,693.42,1.05806795]
[1735573888613,0.26513881,695.53,693.42,1.05806795]
[1735573888814,0.26513881,695.52,693.51,1.05806795]
[1735573889113,0.26513881,695.51,693.51,1.05806795]
[1735573889308,0.26513881,695.5,693.51,1.05806795]
[1735573889510,0.26513881,695.49,693.51,1.05806795]
[1735573889814,0.26513881,695.48,693.61,1.05806795]
[1735573890014,0.26513881,695.47,693.61,1.05806795]
[1735573890209,0.26513881,695.46,693.61,1.05806795]
[1735573890410,0.2651334,695.45,693.61,1.05806795]
[1735573890617,0.2651334,695.44,693.67,1.05806795]
[1735573890914,0.2651334,695.43,693.67,1.05806795]
[1735573891107,0.2651334,695.42,693.67,1.05806795]
[1735573891308,0.2651334,695.41,693.67,1.05806795]
[1735573891508,0.2651334,695.4,693.67,1.05806795]
[1735573891710,0.2651334,695.39,693.66,1.05806795]
[1735573891912,0.2651334,695.38,693.66,1.05806795]
[1735573892113,0.2651334,695.37,693.66,1.05806795]
[1735573892309,0.2651334,695.36,693.66,1.05806795]
[1735573892514,0.28744305,695.79,693.66,1.05806795]
[1735573892515,0.2651334,695.35,693.66,1.05806795]
[1735573892715,0.2651334,695.35,692.88,2.16022206]
[1735573892716,0.2651334,695.34,693.72,1.05806795]
[1735573892915,0.2651334,695.33,693.72,1.05806795]
[1735573893217,0.2651334,695.32,693.72,1.05806795]
[1735573893422,0.2651334,695.31,693.72,1.05806795]
[1735573893619,0.2651334,695.3,693.72,1.05806795]
[1735573893819,0.28744305,695.79,693.72,1.05806795]
[1735573893820,0.2651334,695.29,693.72,1.05806795]
[1735573894019,0.2651334,695.28,693.72,1.05806795]
[1735573894318,0.2651334,695.27,693.72,1.05806795]
[1735573894519,0.2651334,695.26,693.72,1.05806795]
[1735573894713,1.06859977,695.77,693.72,1.05806795]
[1735573894714,0.2651334,695.25,693.72,1.05806795]
[1735573895019,0.2651334,695.24,693.72,1.05806795]
[1735573895220,0.2651334,695.23,693.59,1.05806795]
[1735573895519,0.26524073,695.22,693.59,1.05806795]
[1735573895718,0.26524073,695.21,693.59,1.05806795]
[1735573895916,0.26524073,695.2,693.59,1.05806795]
[1735573896119,0.26524073,695.19,693.59,1.05806795]
[1735573896317,0.26524073,695.18,693.59,1.05806795]
[1735573896517,0.26524073,695.17,693.59,1.05806795]
[1735573896719,0.26524073,695.16,693.64,1.05806795]
[1735573897018,0.26524073,695.15,693.64,1.05806795]
[1735573897221,0.26524073,695.14,693.64,1.05806795]
[1735573897520,0.26524073,695.13,693.64,1.05806795]
[1735573897720,0.26524073,695.12,693.64,1.05806795]
[1735573897913,1.06859977,695.45,693.64,1.05806795]
[1735573898119,0.26524338,695.44,693.64,1.05806795]
[1735573898417,1.06859977,695.51,693.64,1.05806795]
[1735573898418,0.26524338,695.43,693.64,1.05806795]
[1735573898618,0.26524338,695.42,693.64,1.05806795]
[1735573898820,0.26524338,695.41,693.64,1.05806795]
[1735573899014,0.26524338,695.4,693.64,1.05806795]
[1735573899220,0.26524338,695.39,693.64,1.05806795]
[1735573899420,0.26524338,695.38,693.64,1.05806795]
[1735573899718,0.26524338,695.37,693.64,1.05806795]
[1735573900021,0.26524338,695.36,693.65,1.05806795]
[1735573900217,0.26524338,695.35,693.65,1.05806795]
[1735573900413,0.26524338,695.34,693.65,1.05806795]
[1735573900614,0.26528678,695.33,693.65,1.05806795]
[1735573900920,0.26528678,695.32,693.65,1.05806795]
[1735573901114,0.26528678,695.31,693.65,1.05806795]
[1735573901321,0.26528678,695.31,693.05,2.16022206]
[1735573901322,0.26529476,695.3,693.61,1.05806795]
[1735573901515,0.26529476,695.29,693.61,1.05806795]
[1735573901818,0.26529476,695.28,693.61,1.05806795]
[1735573902119,0.26529476,695.27,693.61,1.05806795]
[1735573902321,0.26529476,695.26,693.57,1.05806795]
[1735573902522,0.26529476,695.25,693.57,1.05806795]
[1735573902820,0.26529476,695.24,693.57,1.05806795]
[1735573903020,0.26529476,695.23,693.57,1.05806795]
[1735573903214,1.06859977,695.39,693.57,1.05806795]
[1735573903413,0.26526752,695.38,693.57,1.05806795]
[1735573903613,0.26526752,695.37,693.57,1.05806795]
[1735573903815,0.26523609,695.36,693.55,1.05806795]
[1735573904013,0.26523609,695.35,693.55,1.05806795]
[1735573904220,0.26523609,695.34,693.55,1.05806795]
[1735573904414,1.06859977,695.4,693.55,1.05806795]
[1735573904415,0.26523609,695.33,693.55,1.05806795]
[1735573904620,0.26523609,695.32,693.55,1.05806795]
[1735573904822,0.26523609,695.31,693.55,1.05806795]
[1735573905125,1.06859977,695.4,693.55,1.05806795]
[1735573905126,0.26523609,695.3,693.55,1.05806795]
[1735573905325,0.26523609,695.3,693.24,1.05806795]
[1735573905326,0.26523609,695.29,693.63,1.05806795]
[1735573905520,0.26523609,695.28,693.63,1.05806795]
[1735573905725,1.06859977,695.64,693.63,1.05806795]
[1735573906123,0.26512774,695.63,693.88,1.05806795]
[1735573906324,0.26512774,695.62,693.88,1.05806795]
[1735573906520,0.26512774,695.61,693.88,1.05806795]
[1735573906827,0.26512774,695.6,693.88,1.05806795]
[1735573907024,0.26512774,695.59,693.88,1.05806795]
[1735573907218,0.26512774,695.58,693.88,1.05806795]
[1735573907419,0.26512774,695.57,693.93,1.05806795]
[1735573907623,0.26512774,695.56,693.93,1.05806795]
[1735573907918,0.26512774,695.55,693.93,1.05806795]
[1735573908121,0.26512774,695.54,693.93,1.05806795]
[1735573908322,0.26512774,695.53,693.93,1.05806795]
[1735573908521,0.26512774,695.53,693.3,2.16022206]
[1735573908522,0.26512774,695.52,693.9,1.05806795]
[1735573908824,0.26512774,695.51,693.9,1.05806795]
[1735573909026,0.26512774,695.5,693.9,1.05806795]
[1735573909228,0.26512774,695.49,693.9,1.05806795]
[1735573909425,0.26512774,695.48,693.9,1.05806795]
[1735573909626,0.26512774,695.47,693.79,1.05806795]
[1735573909927,0.26512774,695.46,693.79,1.05806795]
[1735573910228,0.63606092,695.87,693.8,1.05806795]
[1735573910229,0.26512774,695.45,693.8,1.05806795]
[1735573910426,0.26512774,695.44,693.8,1.05806795]
[1735573910626,0.26512774,695.43,693.8,1.05806795]
[1735573910925,0.26512774,695.42,693.8,1.05806795]
[1735573911126,1.06859977,695.56,693.8,1.05806795]
[1735573911127,0.2651605,695.41,693.8,1.05806795]
[1735573911423,0.2651605,695.4,693.83,1.05806795]
[1735573911620,0.2651605,695.39,693.83,1.05806795]
[1735573911821,0.2651605,695.38,693.83,1.05806795]
[1735573912124,0.2651605,695.37,693.83,1.05806795]
[1735573912321,0.2651605,695.36,693.83,1.05806795]
[1735573912527,0.2651605,695.35,693.85,1.05806795]
[1735573912827,0.2651605,695.34,693.85,1.05806795]
[1735573913028,0.2651605,695.33,693.85,1.05806795]
[1735573913227,0.2651605,695.32,693.85,1.05806795]
[1735573913427,0.2651605,695.31,693.85,1.05806795]
[1735573913621,1.06859977,695.52,693.85,1.05806795]
[1735573913828,0.265127,695.51,693.84,1.05806795]
[1735573914125,0.265127,695.5,693.84,1.05806795]
[1735573914329,0.265127,695.49,693.84,1.05806795]
[1735573914526,0.265127,695.48,693.84,1.05806795]
[1735573914723,0.265127,695.47,693.78,1.05806795]
[1735573914923,0.265127,695.46,693.78,1.05806795]
[1735573915128,0.265127,695.45,693.78,1.05806795]
[1735573915329,0.265127,695.44,693.78,1.05806795]
[1735573915523,0.265127,695.43,693.78,1.05806795]
[1735573915727,0.265127,695.42,693.78,1.05806795]
[1735573915930,0.265127,695.41,693.74,1.05806795]
[1735573916130,0.265127,695.69,693.74,1.05806795]
[1735573916332,0.265127,695.68,693.74,1.05806795]
[1735573916529,0.265127,695.67,693.74,1.05806795]
[1735573916829,0.265127,695.66,693.74,1.05806795]
[1735573917029,0.265127,695.65,693.74,1.05806795]
[1735573917230,0.265127,695.64,693.74,1.05806795]
[1735573917431,0.28744305,695.79,693.73,1.05806795]
[1735573917432,0.265127,695.63,693.73,1.05806795]
[1735573917626,0.265127,695.62,693.73,1.05806795]
[1735573917829,0.265127,695.61,693.73,1.05806795]
[1735573918027,0.265127,695.6,693.73,1.05806795]
[1735573918226,0.265127,695.59,693.73,1.05806795]
[1735573918425,0.265127,695.58,693.73,1.05806795]
[1735573918629,0.265127,695.57,693.74,1.05806795]
[1735573918932,0.26513374,695.56,693.74,1.05806795]
[1735573919233,0.26513374,695.55,693.74,1.05806795]
[1735573919431,0.26513374,695.54,693.74,1.05806795]
[1735573919636,0.26513374,695.53,693.75,1.05806795]
[1735573919933,0.26513374,695.52,693.75,1.05806795]
[1735573920132,0.26513374,695.51,693.75,1.05806795]
[1735573920335,0.26513374,695.5,693.75,1.05806795]
[1735573920533,0.26513374,695.49,693.75,1.05806795]
[1735573920727,0.26513374,695.48,693.73,1.05806795]
[1735573920929,1.06859977,695.68,693.73,1.05806795]
[1735573921129,0.26515187,695.67,693.73,1.05806795]
[1735573921435,0.26515187,695.66,693.73,1.05806795]
[1735573921631,1.06859977,695.68,693.73,1.05806795]
[1735573921831,1.06859977,695.64,693.67,1.05806795]
[1735573922032,0.26516553,695.63,693.67,1.05806795]
[1735573922234,0.26516553,695.62,693.67,1.05806795]
[1735573922534,1.06859977,695.64,693.67,1.05806795]
[1735573922535,0.26516553,695.61,693.67,1.05806795]
[1735573922737,0.26516553,695.6,693.67,1.05806795]
[1735573922929,0.26516553,695.59,693.67,1.05806795]
[1735573923128,0.26516553,695.59,692.91,2.16022206]
[1735573923129,1.06859977,695.52,693.73,1.05806795]
[1735573923328,0.26513159,695.51,693.73,1.05806795]
[1735573923937,0.26514163,695.5,693.73,1.05806795]
[1735573924129,0.26514163,695.49,693.73,1.05806795]
[1735573924332,0.26514163,695.48,693.75,1.05806795]
[1735573924532,0.26514163,695.47,693.75,1.05806795]
[1735573924729,1.06859977,695.65,693.75,1.05806795]
[1735573924730,0.26514163,695.46,693.75,1.05806795]
[1735573924930,0.26514163,695.45,693.75,1.05806795]
[1735573925136,0.26514163,695.44,693.75,1.05806795]
[1735573925334,0.26514163,695.43,693.75,1.05806795]
[1735573925537,0.26514163,695.42,693.67,1.05806795]
[1735573925732,0.28760425,695.4,693.67,1.05806795]
[1735573925929,0.26516866,695.39,693.67,1.05806795]
[1735573926132,0.26516866,695.38,693.67,1.05806795]
[1735573926331,0.26516866,695.37,693.67,1.05806795]
[1735573926530,0.28760425,695.4,693.67,1.05806795]